[Event "The Elitserien 2024/25: round 1 - 3"]
[Site "Scandic Infra City, Kanalvagen 10, Upplands Vasby, Sweden"]
[Date "2024.10.05"]
[Round "2.9"]
[White "Sivuk, Vitaly"]
[Black "Danchevski, Orce"]
[Result "0-1"]
[TimeControl "90 minutes for 40 moves + 30 minutes for the rest of the game + 30 seconds per move from move one."]
[WhiteTitle "GM"]
[BlackTitle "IM"]
[WhiteFideId "14116502"]
[BlackFideId "15000311"]
[WhiteElo "2526"]
[BlackElo "2339"]

1. d4 {[%clk 01:21:42]} {[%emt 00:09:17]} d5 {[%clk 01:30:34]} {[%emt
00:00:26]} 2. c4 {[%clk 01:22:00]} {[%emt 00:00:12]} e6 {[%clk 01:30:45]}
{[%emt 00:00:20]} 3. Nc3 {[%clk 01:22:18]} {[%emt 00:00:12]} Be7 {[%clk
01:29:38]} {[%emt 00:01:36]} 4. cxd5 {[%clk 01:22:15]} {[%emt 00:00:34]} exd5
{[%clk 01:29:49]} {[%emt 00:00:19]} 5. Bf4 {[%clk 01:22:35]} {[%emt 00:00:09]}
c6 {[%clk 01:29:58]} {[%emt 00:00:20]} 6. e3 {[%clk 01:22:41]} {[%emt
00:00:26]} Bf5 {[%clk 01:25:58]} {[%emt 00:04:28]} 7. Nge2 {[%clk 01:21:40]}
{[%emt 00:01:32]} Qb6 {[%clk 01:19:24]} {[%emt 00:07:05]} 8. Qd2 {[%clk
01:18:49]} {[%emt 00:03:20]} Nf6 {[%clk 01:19:20]} {[%emt 00:00:35]} 9. Ng3
{[%clk 01:18:55]} {[%emt 00:00:24]} Bg6 {[%clk 01:18:58]} {[%emt 00:00:51]} 10.
h4 {[%clk 01:18:49]} {[%emt 00:00:36]} Ne4 {[%clk 01:17:30]} {[%emt 00:01:59]}
11. Ncxe4 {[%clk 01:11:08]} {[%emt 00:08:10]} dxe4 {[%clk 01:09:17]} {[%emt
00:08:43]} 12. a3 {[%clk 01:11:30]} {[%emt 00:00:08]} h6 {[%clk 01:08:27]}
{[%emt 00:01:20]} 13. h5 {[%clk 01:09:59]} {[%emt 00:02:01]} Bh7 {[%clk
01:08:48]} {[%emt 00:00:08]} 14. Bc4 {[%clk 01:07:03]} {[%emt 00:03:28]} Nd7
{[%clk 01:04:22]} {[%emt 00:04:55]} 15. O-O {[%clk 01:07:21]} {[%emt 00:00:11]}
O-O {[%clk 01:04:15]} {[%emt 00:00:37]} 16. f3 {[%clk 01:04:21]} {[%emt
00:03:31]} exf3 {[%clk 00:55:19]} {[%emt 00:09:27]} 17. Rxf3 {[%clk 01:04:37]}
{[%emt 00:00:14]} c5 {[%clk 00:55:40]} {[%emt 00:00:08]} 18. Raf1 {[%clk
00:50:42]} {[%emt 00:14:25]} Kh8 {[%clk 00:42:56]} {[%emt 00:13:15]} 19. dxc5
{[%clk 00:40:12]} {[%emt 00:10:59]} Nxc5 {[%clk 00:42:26]} {[%emt 00:01:01]} 20.
Be5 {[%clk 00:40:32]} {[%emt 00:00:10]} f6 {[%clk 00:41:38]} {[%emt 00:01:18]}
21. Bd4 {[%clk 00:40:47]} {[%emt 00:00:14]} Nb3 {[%clk 00:38:59]} {[%emt
00:03:09]} 22. Qf2 {[%clk 00:31:26]} {[%emt 00:09:51]} Nxd4 {[%clk 00:37:51]}
{[%emt 00:01:38]} 23. exd4 {[%clk 00:31:52]} {[%emt 00:00:05]} Rfd8 {[%clk
00:31:25]} {[%emt 00:06:55]} 24. Ne2 {[%clk 00:28:26]} {[%emt 00:03:56]} Qxb2
{[%clk 00:28:25]} 25. Rb3 {[%clk 00:27:52]} {[%emt 00:04:34]} Qd2 {[%clk
00:23:07]} {[%emt 00:05:47]} 26. Rxb7 {[%clk 00:27:49]} {[%emt 00:00:34]} Bf8
{[%clk 00:23:16]} {[%emt 00:00:21]} 27. a4 {[%clk 00:18:27]} {[%emt 00:09:53]}
Be4 {[%clk 00:10:21]} {[%emt 00:13:24]} 28. Rf7 {[%clk 00:16:31]} {[%emt
00:02:27]} a5 {[%clk 00:06:46]} {[%emt 00:04:06]} 29. Qh4 {[%clk 00:10:45]}
{[%emt 00:06:14]} Bh7 {[%clk 00:03:20]} {[%emt 00:03:57]} 30. Kh1 {[%clk
00:05:57]} {[%emt 00:05:18]} Qg5 {[%clk 00:03:00]} {[%emt 00:00:50]} 31. Qh3
{[%clk 00:04:41]} {[%emt 00:01:46]} Bd6 {[%clk 00:02:42]} {[%emt 00:00:48]} 32.
Rb7 {[%clk 00:03:07]} {[%emt 00:02:04]} Rac8 {[%clk 00:02:02]} {[%emt
00:01:10]} 33. Be6 {[%clk 00:01:41]} {[%emt 00:01:55]} Rc2 {[%clk 00:02:00]}
{[%emt 00:00:32]} 34. Ng1 {[%clk 00:00:40]} {[%emt 00:01:31]} Be4 {[%clk
00:02:01]} {[%emt 00:00:29]} 35. Nf3 {[%clk 00:01:06]} {[%emt 00:00:05]} Qf4
{[%clk 00:01:13]} {[%emt 00:01:18]} 36. Rb3 {[%clk 00:01:27]} {[%emt 00:00:09]}
Rc1 {[%clk 00:01:22]} {[%emt 00:00:22]} 37. Rxc1 {[%clk 00:01:35]} Qxc1+ {[%clk
00:01:47]} {[%emt 00:00:26]} 38. Ng1 {[%clk 00:02:00]} {[%emt 00:00:05]} Qd1
{[%clk 00:00:48]} {[%emt 00:01:28]} 39. Bf7 {[%clk 00:00:33]} {[%emt 00:01:58]}
Qxd4 {[%clk 00:00:47]} {[%emt 00:00:31]} 40. Qg4 {[%clk 00:00:33]} {[%emt
00:00:29]} Qe5 {[%clk 00:00:42]} {[%emt 00:00:36]} 41. Qh3 {[%clk 00:26:54]}
{[%emt 00:04:08]} Bc5 {[%clk 00:21:59]} {[%emt 00:09:12]} 42. Rb5 {[%clk
00:26:36]} {[%emt 00:00:49]} Bc6 {[%clk 00:21:24]} {[%emt 00:01:05]} 43. Rb1
{[%emt 00:02:12]} Bxg1 {[%clk 00:13:23]} {[%emt 00:08:24]} 44. Rxg1 {[%clk
00:25:15]} {[%emt 00:00:16]} Bxa4 {[%clk 00:13:47]} {[%emt 00:00:06]} 45. Rc1
{[%clk 00:25:30]} {[%emt 00:00:15]} Be8 {[%clk 00:07:09]} {[%emt 00:07:08]} 46.
Bg6 {[%clk 00:21:55]} {[%emt 00:04:06]} Bxg6 {[%clk 00:06:30]} {[%emt
00:01:09]} 47. hxg6 {[%clk 00:22:19]} {[%emt 00:00:04]} Qe8 {[%clk 00:06:57]}
{[%emt 00:00:04]} 48. Qg3 {[%clk 00:16:26]} {[%emt 00:06:24]} a4 {[%clk
00:05:26]} {[%emt 00:02:02]} 49. Re1 {[%clk 00:16:32]} {[%emt 00:00:22]} Qb5
{[%clk 00:03:00]} {[%emt 00:02:53]} 50. Qc7 {[%clk 00:15:12]} {[%emt 00:01:54]}
Re8 {[%clk 00:01:33]} {[%emt 00:01:56]} 51. Rxe8+ {[%clk 00:11:07]} {[%emt
00:04:35]} Qxe8 {[%clk 00:02:00]} {[%emt 00:00:04]} 52. Qf7 {[%clk 00:11:30]}
{[%emt 00:00:07]} Qa8 {[%clk 00:02:25]} {[%emt 00:00:05]} 53. Kh2 {[%clk
00:10:57]} {[%emt 00:01:03]} a3 {[%clk 00:02:31]} {[%emt 00:00:24]} 54. Qa2
{[%clk 00:11:23]} {[%emt 00:00:04]} f5 {[%clk 00:02:23]} {[%emt 00:00:37]} 55.
Kh3 {[%clk 00:10:28]} {[%emt 00:01:25]} Qe4 {[%clk 00:01:12]} {[%emt 00:01:40]}
56. Qf7 {[%clk 00:10:24]} {[%emt 00:00:35]} Qa8 {[%clk 00:01:27]} {[%emt
00:00:16]} 57. Qa2 {[%clk 00:10:50]} {[%emt 00:00:04]} Qe8 {[%clk 00:01:31]}
{[%emt 00:00:24]} 58. Qf7 {[%clk 00:10:53]} {[%emt 00:00:27]} Qc8 {[%clk
00:01:35]} {[%emt 00:00:26]} 59. Qa7 {[%clk 00:10:03]} {[%emt 00:01:21]} f4+
{[%clk 00:01:08]} {[%emt 00:00:57]} 60. Kh2 {[%clk 00:09:55]} {[%emt 00:00:38]}
Qf8 {[%clk 00:00:51]} {[%emt 00:00:47]} 61. Kg1 {[%clk 00:10:04]} {[%emt
00:00:21]} Qe8 {[%clk 00:00:55]} {[%emt 00:00:25]} 62. Qf7 {[%clk 00:08:12]}
{[%emt 00:02:24]} Qa8 {[%clk 00:01:03]} {[%emt 00:00:22]} 63. Qa2 {[%clk
00:08:37]} {[%emt 00:00:05]} f3 {[%clk 00:01:01]} {[%emt 00:00:32]} 64. g3
{[%clk 00:06:31]} {[%emt 00:02:35]} Qa7+ {[%clk 00:01:12]} {[%emt 00:00:19]} 65.
Kh2 {[%clk 00:06:43]} {[%emt 00:00:18]} Qa8 {[%clk 00:00:47]} {[%emt 00:00:55]}
66. Kg1 {[%clk 00:07:05]} {[%emt 00:00:08]} Qa7+ {[%clk 00:00:37]} {[%emt
00:00:41]} 67. Kh2 {[%clk 00:07:29]} {[%emt 00:00:05]} f2 {[%clk 00:00:49]}
{[%emt 00:00:19]} 68. Qd5 {[%clk 00:05:21]} {[%emt 00:02:38]} f1=N+ {[%clk
00:00:45]} {[%emt 00:00:34]} 69. Kh3 {[%clk 00:05:45]} {[%emt 00:00:05]} Qb8
{[%clk 00:01:07]} {[%emt 00:00:08]} 0-1

[Event "The Elitserien 2024/25: round 1 - 3"]
[Site "Scandic Infra City, Kanalvagen 10, Upplands Vasby, Sweden"]
[Date "2024.10.05"]
[Round "2.10"]
[White "Gdanski, Jacek"]
[Black "Galperin, Platon"]
[Result "1-0"]
[TimeControl "90 minutes for 40 moves + 30 minutes for the rest of the game + 30 seconds per move from move one."]
[WhiteTitle "GM"]
[BlackTitle "GM"]
[WhiteFideId "1100106"]
[BlackFideId "14165414"]
[WhiteElo "2482"]
[BlackElo "2518"]

1. e4 {[%clk 01:29:52]} {[%emt 00:01:07]} e6 {[%clk 01:28:47]} {[%emt
00:02:13]} 2. d4 {[%clk 01:30:12]} {[%emt 00:00:10]} d5 {[%clk 01:29:13]}
{[%emt 00:00:04]} 3. Nc3 {[%clk 01:28:36]} {[%emt 00:02:06]} Nf6 {[%clk
01:29:37]} {[%emt 00:00:07]} 4. Bg5 {[%clk 01:28:58]} {[%emt 00:00:07]} dxe4
{[%clk 01:30:04]} {[%emt 00:00:04]} 5. Nxe4 {[%clk 01:29:18]} {[%emt 00:00:10]}
Nbd7 {[%clk 01:30:32]} {[%emt 00:00:02]} 6. Nxf6+ {[%clk 01:27:21]} {[%emt
00:02:26]} Nxf6 {[%clk 01:26:05]} {[%emt 00:04:57]} 7. Nf3 {[%clk 01:27:41]}
{[%emt 00:00:10]} c5 {[%clk 01:25:38]} {[%emt 00:00:58]} 8. Be2 {[%clk
01:21:12]} {[%emt 00:06:58]} cxd4 {[%clk 01:07:30]} {[%emt 00:18:39]} 9. Qxd4
{[%clk 01:20:56]} {[%emt 00:00:45]} Qxd4 {[%clk 01:07:39]} {[%emt 00:00:22]} 10.
Nxd4 {[%clk 01:21:20]} {[%emt 00:00:06]} Bd7 {[%clk 01:07:56]} {[%emt
00:00:13]} 11. O-O-O {[%clk 01:18:51]} {[%emt 00:02:59]} Nd5 {[%clk 00:41:14]}
{[%emt 00:27:12]} 12. Rhe1 {[%clk 00:55:57]} {[%emt 00:23:24]} Be7 {[%clk
00:39:47]} {[%emt 00:01:57]} 13. Bxe7 {[%clk 00:54:43]} {[%emt 00:01:43]} Nxe7
{[%clk 00:33:58]} {[%emt 00:06:19]} 14. Nb5 {[%clk 00:53:38]} {[%emt 00:01:35]}
Bxb5 {[%clk 00:34:15]} {[%emt 00:00:14]} 15. Bxb5+ {[%clk 00:54:02]} {[%emt
00:00:05]} Kf8 {[%clk 00:34:18]} {[%emt 00:00:27]} 16. Rd7 {[%clk 00:48:12]}
{[%emt 00:06:20]} Rb8 {[%clk 00:29:32]} {[%emt 00:05:17]} 17. Red1 {[%clk
00:44:49]} {[%emt 00:03:53]} Nd5 {[%clk 00:21:27]} {[%emt 00:08:34]} 18. c4
{[%clk 00:44:05]} {[%emt 00:01:14]} Nf6 {[%clk 00:21:42]} {[%emt 00:00:15]} 19.
Rxb7 {[%clk 00:42:59]} {[%emt 00:01:37]} Rxb7 {[%clk 00:22:08]} {[%emt
00:00:03]} 20. Rd8+ {[%clk 00:43:24]} {[%emt 00:00:04]} Ke7 {[%clk 00:22:35]}
{[%emt 00:00:04]} 21. Rxh8 {[%clk 00:43:49]} {[%emt 00:00:05]} g5 {[%clk
00:22:38]} {[%emt 00:00:27]} 22. f3 {[%clk 00:41:29]} {[%emt 00:02:51]} Kd6
{[%clk 00:22:03]} {[%emt 00:01:04]} 23. b3 {[%clk 00:30:30]} {[%emt 00:11:29]}
Ke5 {[%clk 00:18:56]} {[%emt 00:03:38]} 24. Kd2 {[%clk 00:30:33]} {[%emt
00:00:27]} h5 {[%clk 00:16:34]} {[%emt 00:02:52]} 25. g3 {[%clk 00:26:27]}
{[%emt 00:04:35]} Rb6 {[%clk 00:15:06]} {[%emt 00:01:59]} 26. Ra8 {[%clk
00:19:12]} {[%emt 00:07:44]} g4 {[%clk 00:14:11]} {[%emt 00:01:26]} 27. f4+
{[%clk 00:14:41]} {[%emt 00:05:01]} Ke4 {[%clk 00:14:35]} {[%emt 00:00:06]} 28.
Ke2 {[%clk 00:15:08]} {[%emt 00:00:03]} h4 {[%clk 00:14:59]} {[%emt 00:00:05]}
29. Rxa7 {[%clk 00:15:19]} {[%emt 00:00:19]} hxg3 {[%clk 00:15:15]} {[%emt
00:00:15]} 30. hxg3 {[%clk 00:15:44]} {[%emt 00:00:04]} Nh5 {[%clk 00:15:38]}
{[%emt 00:00:07]} 31. Kf2 {[%clk 00:15:26]} {[%emt 00:00:48]} Rd6 {[%clk
00:16:02]} {[%emt 00:00:05]} 32. Rd7 {[%clk 00:15:50]} {[%emt 00:00:08]} Rxd7
{[%clk 00:15:41]} {[%emt 00:00:50]} 33. Bxd7 {[%clk 00:16:18]} {[%emt
00:00:02]} Nf6 {[%clk 00:16:05]} {[%emt 00:00:06]} 34. Bc6+ {[%clk 00:15:08]}
{[%emt 00:01:40]} Kd4 {[%clk 00:16:34]} {[%emt 00:00:02]} 35. Bg2 {[%clk
00:11:42]} {[%emt 00:03:55]} Nd7 {[%clk 00:16:37]} {[%emt 00:00:27]} 36. Ke2
{[%clk 00:10:54]} {[%emt 00:01:18]} Kc3 {[%clk 00:16:04]} {[%emt 00:01:03]} 37.
Ke3 {[%clk 00:09:55]} {[%emt 00:01:29]} f5 {[%clk 00:14:23]} {[%emt 00:02:11]}
38. Bb7 {[%clk 00:09:52]} {[%emt 00:00:32]} Nc5 {[%clk 00:13:50]} {[%emt
00:01:04]} 39. Bc6 {[%clk 00:09:58]} {[%emt 00:00:24]} Nd3 {[%clk 00:13:26]}
{[%emt 00:00:54]} 40. Bd7 {[%clk 00:06:34]} {[%emt 00:03:53]} Nc5 {[%clk
00:13:52]} {[%emt 00:00:05]} 41. Bc8 {[%clk 00:06:51]} {[%emt 00:00:13]} Kb4
{[%clk 00:14:18]} {[%emt 00:00:04]} 42. Kd4 {[%clk 00:05:42]} {[%emt 00:01:39]}
Ne4 {[%clk 00:14:43]} {[%emt 00:00:06]} 43. Bxe6 {[%clk 00:05:19]} {[%emt
00:00:52]} Nxg3 {[%clk 00:15:09]} {[%emt 00:00:04]} 44. Ke3 {[%clk 00:05:04]}
{[%emt 00:00:45]} Kc5 {[%clk 00:15:15]} {[%emt 00:00:25]} 45. a3 {[%clk
00:03:55]} {[%emt 00:01:39]} Kd6 {[%clk 00:15:39]} {[%emt 00:00:06]} 46. Bd5
{[%clk 00:03:59]} {[%emt 00:00:25]} Nf1+ {[%clk 00:15:59]} {[%emt 00:00:10]} 47.
Kf2 {[%clk 00:03:58]} {[%emt 00:00:32]} Nd2 {[%clk 00:16:21]} {[%emt 00:00:08]}
48. b4 {[%clk 00:04:23]} {[%emt 00:00:04]} Nb3 {[%clk 00:15:45]} {[%emt
00:01:06]} 49. Bg8 {[%clk 00:03:14]} {[%emt 00:01:39]} Nd2 {[%clk 00:15:34]}
{[%emt 00:00:42]} 50. c5+ {[%clk 00:03:17]} {[%emt 00:00:27]} Kc6 {[%clk
00:15:58]} {[%emt 00:00:05]} 51. Be6 {[%clk 00:03:25]} {[%emt 00:00:22]} Ne4+
{[%clk 00:16:18]} {[%emt 00:00:11]} 52. Kg2 {[%clk 00:03:09]} {[%emt 00:00:46]}
1-0

[Event "The Elitserien 2024/25: round 1 - 3"]
[Site "Scandic Infra City, Kanalvagen 10, Upplands Vasby, Sweden"]
[Date "2024.10.05"]
[Round "2.11"]
[White "Miezis, Normunds"]
[Black "Vernersson, Per"]
[Result "1/2-1/2"]
[TimeControl "90 minutes for 40 moves + 30 minutes for the rest of the game + 30 seconds per move from move one."]
[WhiteTitle "GM"]
[WhiteFideId "11600136"]
[BlackFideId "1700863"]
[WhiteElo "2417"]
[BlackElo "2256"]

1. c4 {[%clk 01:30:39]} {[%emt 00:00:19]} e6 {[%clk 01:30:41]} {[%emt
00:00:20]} 2. e4 {[%clk 01:30:07]} {[%emt 00:01:01]} c5 {[%clk 01:30:33]}
{[%emt 00:00:38]} 3. Nc3 {[%clk 01:30:12]} {[%emt 00:00:25]} Nc6 {[%clk
01:30:40]} {[%emt 00:00:24]} 4. g3 {[%clk 01:29:34]} {[%emt 00:01:08]} d6
{[%clk 01:30:01]} {[%emt 00:01:09]} 5. Bg2 {[%clk 01:29:34]} {[%emt 00:00:30]}
g6 {[%clk 01:30:02]} {[%emt 00:00:29]} 6. Nge2 {[%clk 01:29:35]} {[%emt
00:00:29]} Bg7 {[%clk 01:30:14]} {[%emt 00:00:19]} 7. a3 {[%clk 01:29:40]}
{[%emt 00:00:24]} Nge7 {[%clk 01:28:57]} {[%emt 00:01:46]} 8. d3 {[%clk
01:27:01]} {[%emt 00:03:10]} O-O {[%clk 01:23:53]} {[%emt 00:05:35]} 9. Rb1
{[%clk 01:26:58]} {[%emt 00:00:32]} Nd4 {[%clk 01:17:12]} {[%emt 00:07:10]} 10.
O-O {[%clk 01:23:33]} {[%emt 00:03:56]} Nec6 {[%clk 01:11:04]} {[%emt
00:06:38]} 11. b4 {[%clk 01:22:01]} {[%emt 00:02:02]} Nxe2+ {[%clk 01:07:11]}
{[%emt 00:04:23]} 12. Nxe2 {[%clk 01:22:21]} {[%emt 00:00:10]} Nd4 {[%clk
01:05:37]} {[%emt 00:02:04]} 13. Be3 {[%clk 01:18:08]} {[%emt 00:04:43]} Nxe2+
{[%clk 00:59:00]} {[%emt 00:07:07]} 14. Qxe2 {[%clk 01:18:22]} {[%emt
00:00:15]} Qc7 {[%clk 00:58:46]} {[%emt 00:00:45]} 15. f4 {[%clk 01:15:17]}
{[%emt 00:03:35]} Bd4 {[%clk 00:41:18]} {[%emt 00:17:58]} 16. Bxd4 {[%clk
01:12:54]} {[%emt 00:02:54]} cxd4 {[%clk 00:41:40]} {[%emt 00:00:07]} 17. e5
{[%clk 01:13:14]} {[%emt 00:00:10]} a5 {[%clk 00:33:03]} {[%emt 00:09:07]} 18.
Qe4 {[%clk 01:00:55]} {[%emt 00:12:48]} axb4 {[%clk 00:33:17]} {[%emt
00:00:17]} 19. axb4 {[%clk 01:01:14]} {[%emt 00:00:11]} Ra3 {[%clk 00:30:07]}
{[%emt 00:03:40]} 20. Ra1 {[%clk 00:48:51]} {[%emt 00:12:53]} Rb3 {[%clk
00:19:56]} {[%emt 00:10:41]} 21. Rfb1 {[%clk 00:46:19]} {[%emt 00:03:01]} Rxb1+
{[%clk 00:20:11]} {[%emt 00:00:16]} 22. Rxb1 {[%clk 00:46:41]} {[%emt
00:00:07]} Rd8 {[%clk 00:20:00]} {[%emt 00:00:42]} 23. Qxd4 {[%clk 00:33:44]}
{[%emt 00:13:27]} dxe5 {[%clk 00:19:30]} {[%emt 00:01:00]} 24. Qxe5 {[%clk
00:34:04]} {[%emt 00:00:11]} Qb6+ {[%clk 00:16:52]} {[%emt 00:03:07]} 25. Qc5
{[%clk 00:27:57]} {[%emt 00:06:37]} Qxc5+ {[%clk 00:15:11]} {[%emt 00:02:12]}
26. bxc5 {[%clk 00:28:09]} {[%emt 00:00:17]} Rxd3 {[%clk 00:15:07]} {[%emt
00:00:33]} 27. Ra1 {[%clk 00:13:08]} {[%emt 00:15:31]} Rd7 {[%clk 00:14:35]}
{[%emt 00:01:02]} 28. Ra8 {[%clk 00:04:29]} {[%emt 00:09:11]} Rc7 {[%clk
00:14:55]} {[%emt 00:00:10]} 29. Bxb7 {[%clk 00:04:06]} {[%emt 00:00:53]} Rxb7
{[%clk 00:15:20]} {[%emt 00:00:05]} 30. Rxc8+ {[%clk 00:04:28]} {[%emt
00:00:07]} Kg7 {[%clk 00:15:46]} {[%emt 00:00:04]} 31. Kf2 {[%clk 00:04:31]}
{[%emt 00:00:27]} Rb4 {[%clk 00:14:38]} {[%emt 00:01:38]} 32. Ke3 {[%clk
00:04:32]} {[%emt 00:00:29]} Rxc4 {[%clk 00:14:51]} {[%emt 00:00:17]} 33. c6
{[%clk 00:04:39]} {[%emt 00:00:23]} Kf6 {[%clk 00:12:38]} {[%emt 00:02:43]} 34.
Kd3 {[%clk 00:04:21]} {[%emt 00:00:49]} Rc1 {[%clk 00:12:23]} {[%emt 00:00:44]}
35. Rc7 {[%clk 00:03:20]} {[%emt 00:01:32]} h5 {[%clk 00:12:26]} {[%emt
00:00:26]} 36. Kd4 {[%clk 00:03:21]} {[%emt 00:00:29]} Rc2 {[%clk 00:12:37]}
{[%emt 00:00:19]} 37. h3 {[%clk 00:03:17]} {[%emt 00:00:34]} Rc1 {[%clk
00:11:16]} {[%emt 00:01:51]} 38. Rc8 {[%clk 00:02:37]} {[%emt 00:01:10]} Kf5
{[%clk 00:11:11]} {[%emt 00:00:34]} 39. Rf8 {[%clk 00:01:51]} {[%emt 00:01:17]}
f6 {[%clk 00:11:21]} {[%emt 00:00:21]} 40. g4+ {[%clk 00:02:05]} {[%emt
00:00:15]} hxg4 {[%clk 00:11:17]} {[%emt 00:00:34]} 41. hxg4+ {[%clk 00:02:32]}
{[%emt 00:00:03]} Kxg4 {[%clk 00:11:18]} {[%emt 00:00:29]} 42. Rxf6 {[%clk
00:02:46]} {[%emt 00:00:16]} Rxc6 {[%clk 00:11:33]} {[%emt 00:00:15]} 43. Ke5
{[%clk 00:02:22]} {[%emt 00:00:54]} Rc5+ {[%clk 00:11:35]} {[%emt 00:00:28]} 44.
Kxe6 {[%clk 00:01:27]} {[%emt 00:01:24]} Rc6+ {[%clk 00:12:00]} {[%emt
00:00:06]} 45. Kf7 {[%clk 00:01:49]} {[%emt 00:00:07]} Rxf6+ {[%clk 00:12:26]}
{[%emt 00:00:05]} 46. Kxf6 {[%clk 00:02:10]} {[%emt 00:00:09]} Kxf4 {[%clk
00:12:53]} {[%emt 00:00:03]} 47. Kxg6 {[%clk 00:02:00]} {[%emt 00:00:08]} Ke5
{[%emt 00:00:26]} 1/2-1/2

[Event "The Elitserien 2024/25: round 1 - 3"]
[Site "Scandic Infra City, Kanalvagen 10, Upplands Vasby, Sweden"]
[Date "2024.10.05"]
[Round "2.12"]
[White "Lukez, Giamfranko"]
[Black "Peng, Li Min"]
[Result "1/2-1/2"]
[TimeControl "90 minutes for 40 moves + 30 minutes for the rest of the game + 30 seconds per move from move one."]
[WhiteTitle "FM"]
[BlackTitle "GM"]
[WhiteFideId "1700626"]
[BlackFideId "14112620"]
[WhiteElo "2281"]
[BlackElo "2514"]

1. Nf3 {[%clk 01:30:44]} {[%emt 00:00:15]} d5 {[%clk 01:27:20]} {[%emt
00:03:41]} 2. g3 {[%clk 01:30:53]} {[%emt 00:00:21]} Nf6 {[%clk 01:27:38]}
{[%emt 00:00:12]} 3. Bg2 {[%clk 01:31:10]} {[%emt 00:00:12]} e6 {[%clk
01:27:28]} {[%emt 00:00:40]} 4. O-O {[%clk 01:31:25]} {[%emt 00:00:15]} Be7
{[%clk 01:27:53]} {[%emt 00:00:05]} 5. d3 {[%clk 01:30:14]} {[%emt 00:01:41]}
O-O {[%clk 01:27:52]} {[%emt 00:00:31]} 6. c4 {[%clk 01:30:33]} {[%emt
00:00:11]} a6 {[%clk 01:28:02]} {[%emt 00:00:21]} 7. Nc3 {[%clk 01:25:43]}
{[%emt 00:05:20]} d4 {[%clk 01:27:40]} {[%emt 00:00:52]} 8. Nb1 {[%clk
01:26:07]} {[%emt 00:00:06]} c5 {[%clk 01:24:34]} {[%emt 00:03:36]} 9. e3
{[%clk 01:26:29]} {[%emt 00:00:08]} Nc6 {[%clk 01:24:57]} {[%emt 00:00:07]} 10.
exd4 {[%clk 01:26:53]} {[%emt 00:00:07]} cxd4 {[%clk 01:25:22]} {[%emt
00:00:04]} 11. Bg5 {[%clk 01:26:49]} {[%emt 00:00:33]} Nd7 {[%clk 01:25:24]}
{[%emt 00:00:28]} 12. Bxe7 {[%clk 01:27:13]} {[%emt 00:00:08]} Qxe7 {[%clk
01:25:50]} {[%emt 00:00:03]} 13. Nbd2 {[%clk 01:26:43]} {[%emt 00:00:59]} Nc5
{[%clk 01:26:08]} {[%emt 00:00:12]} 14. Nb3 {[%clk 01:26:38]} {[%emt 00:00:36]}
Nxb3 {[%clk 01:26:20]} {[%emt 00:00:17]} 15. Qxb3 {[%clk 01:26:39]} {[%emt
00:00:28]} Rb8 {[%clk 01:20:28]} {[%emt 00:06:23]} 16. Nd2 {[%clk 01:22:20]}
{[%emt 00:04:50]} Bd7 {[%clk 01:20:25]} {[%emt 00:00:32]} 17. Rac1 {[%clk
01:22:16]} {[%emt 00:00:34]} Rfc8 {[%clk 01:16:10]} {[%emt 00:04:45]} 18. a3
{[%clk 01:20:38]} {[%emt 00:02:09]} b5 {[%clk 01:07:42]} {[%emt 00:08:58]} 19.
c5 {[%clk 01:20:07]} {[%emt 00:01:01]} a5 {[%clk 01:08:07]} {[%emt 00:00:05]}
20. Qc2 {[%clk 01:11:39]} {[%emt 00:08:57]} a4 {[%clk 01:05:47]} {[%emt
00:02:50]} 21. b4 {[%clk 00:46:33]} {[%emt 00:25:36]} axb3 {[%clk 01:03:59]}
{[%emt 00:02:19]} 22. Nxb3 {[%clk 00:46:22]} {[%emt 00:00:40]} e5 {[%clk
01:00:36]} {[%emt 00:03:54]} 23. Rfe1 {[%clk 00:46:34]} {[%emt 00:00:17]} b4
{[%clk 00:57:41]} {[%emt 00:03:24]} 24. a4 {[%clk 00:36:55]} {[%emt 00:10:10]}
Be6 {[%clk 00:53:31]} {[%emt 00:04:41]} 25. Bxc6 {[%clk 00:25:49]} {[%emt
00:11:36]} Rxc6 {[%clk 00:52:03]} {[%emt 00:01:59]} 26. Rxe5 {[%clk 00:25:31]}
{[%emt 00:00:47]} Bxb3 {[%clk 00:40:12]} {[%emt 00:12:21]} 27. Rxe7 {[%clk
00:25:35]} {[%emt 00:00:26]} Bxc2 {[%clk 00:40:39]} {[%emt 00:00:03]} 28. Rxc2
{[%clk 00:25:58]} {[%emt 00:00:07]} b3 {[%clk 00:41:06]} {[%emt 00:00:03]} 29.
Rb2 {[%emt 00:02:35]} Kf8 1/2-1/2